Cogmind - Beta 13 *** ADVENTURER MODE // 2024.03.31 @ 06:44:32 Player: Andronian Result: Destroyed by P-70 Sage with High-powered Shock Rifle Performance ------------- Evolutions (5) 2500 Regions Visited (13) 2600 Robots Destroyed (146) 730 Value Destroyed (5896) 5896 Prototype IDs (32) 640 Alien Tech Used (0) 0 Bonus (659) 659 TOTAL SCORE: 13025 Bonus ------- High Alert Combat Kills 138 Follower Combat Kills 21 Entered Garrisons 200 Aligned with FarCom 300 Cogmind --------- Core Integrity 0/1000 Matter 256/300 Energy 261/310 System Corruption 17% Temperature Cool (0) Movement Treading (240) Ox1 Location -5/Factory Parts ------- > --- POWER (3) -------- Reinforced Fission Core > --- PROPULSION (5) --- Improved Treads > --- UTILITY (5) ------ Targeting Computer Advanced Melee Analysis Suite Microactuators EM Disruption Field > --- WEAPON (4) ------- Gauss Rifle KE Penetrator > --- INVENTORY (5) ---- (None) Peak State ------------ > --- POWER ------------ Micro Nuclear Core Micro Nuclear Core Light Fission Core > --- PROPULSION ------- Carbon-fiber Leg Carbon-fiber Leg Carbon-fiber Leg Improved VSS Leg > --- UTILITY ---------- Improved Coolant Injector Compact Battery Targeting Computer Hardened Heavy Armor Plating > --- WEAPON ----------- Heavy Plasma Cannon Hypervelocity Coil Gun Hypervelocity Coil Gun Hypervelocity Coil Gun > --- INVENTORY -------- Heat Sink Heat Sink Improved Coolant Injector System Restoration Module [Rating: 69] Favorites ----------- Power Light Ion Engine Engine Light Ion Engine Power Core Light Fission Core Propulsion Carbon-fiber Leg Treads Medium Treads Leg Carbon-fiber Leg Wheel Armored Wheel Hover Unit Antigrav System Flight Unit Cesium-ion Thruster Utility 0b10 Alert Chip Device Heat Sink Storage Compact Battery Processor 0b10 Alert Chip Hackware Hacking Suite Protection Light Armor Plating Weapon Minigun Energy Gun Plasma Rifle Energy Cannon Particle Cannon Ballistic Gun Minigun Launcher Rocket Launcher Special Weapon Mining Laser Build | -11 -10 -9 -9 -9 -8 -8 -8 -8 -7 -7 -7 -6 -5 ------- Run | Yrd Mat Mat Min Exi Min Mat Gar Mat Fac Low Low Fac Fac Slots Evolved 10 | . . 2 . . . 2 . . 2 . . 2 2 Power 2 | . . . . . . 1 . . . . . 1 . Propulsion 3 | . . 1 . . . 1 . . . . . . 1 Utility 3 | . . 1 . . . . . . 2 . . . . Weapon 2 | . . . . . . . . . . . . 1 1 Parts Attached 167 | 7 21 34 . 2 . 4 10 6 3 4 4 20 52 Power 21 | 1 1 3 . . . . 2 1 1 . . 2 10 Engine 10 | 1 1 3 . . . . 1 1 1 . . . 2 Core 11 | . . . . . . . 1 . . . . 2 8 Reactor . | . . . . . . . . . . . . . . Propulsion 47 | 4 6 15 . . . 1 . . . 1 4 6 10 Treads 4 | . . . . . . . . . . 1 1 . 2 Leg 8 | 2 . . . . . . . . . . . 6 . Wheel 11 | 2 5 . . . . . . . . . . . 4 Hover 2 | . 1 . . . . . . . . . . . 1 Flight 22 | . . 15 . . . 1 . . . . 3 . 3 Utility 51 | . 11 8 . 1 . 2 1 2 2 1 . 4 19 Device 25 | . 3 3 . . . 1 1 . 1 . . 3 13 Storage 7 | . 3 3 . . . . . . . . . . 1 Processor 7 | . 2 1 . 1 . . . . . 1 . . 2 Hackware 2 | . . . . . . . . 1 1 . . . . Protection 10 | . 3 1 . . . 1 . 1 . . . 1 3 Artifact . | . . . . . . . . . . . . . . Weapon 48 | 2 3 8 . 1 . 1 7 3 . 2 . 8 13 Energy Gun 11 | 2 2 3 . . . . . . . . . 3 1 Energy Cannon 8 | . . 4 . . . 1 . . . . . 1 2 Ballistic Gun 25 | . . 1 . . . . 6 3 . 2 . 3 10 Ballistic Cannon . | . . . . . . . . . . . . . . Launcher 3 | . . . . 1 . . 1 . . . . 1 . Special Weapon 1 | . 1 . . . . . . . . . . . . Impact Weapon . | . . . . . . . . . . . . . . Slashing Weapon . | . . . . . . . . . . . . . . Piercing Weapon . | . . . . . . . . . . . . . . Special Melee Weapon . | . . . . . . . . . . . . . . Unidentified Prototypes 3 | . . . . 1 . . . . . . . . 2 Parts Lost 50 | . . 2 . . 1 . 4 . . 1 2 7 33 Power 10 | . . 1 . . 1 . . . . . . . 8 Propulsion 12 | . . . . . . . . . . . . 2 10 Utility 13 | . . . . . . . 2 . . 1 2 1 7 Weapon 15 | . . 1 . . . . 2 . . . . 4 8 Highest Loss Streak 13 | . . 1 . . 1 . 2 . . 1 1 3 13 To Critical Strikes . | . . . . . . . . . . . . . . Average Slot Usage (%) 59 | . 97 75 66 47 42 49 54 58 69 59 52 47 52 Engine 5 | . 14 9 11 11 9 . 4 . 7 7 5 . . Core 2 | . . . . . . . 2 9 . . . 5 7 Leg 3 | . . . . . . . . . . . . 15 8 Wheel 3 | . 25 12 . . . . . . . . . . . Flight 4 | . . 13 33 3 . 9 9 9 7 . 7 . 1 Device 6 | . 13 8 11 1 . 9 6 . 6 7 5 4 6 Storage 1 | . 2 7 . . . . . . . . . . 2 Processor 5 | . . 7 . 9 11 9 9 9 7 1 7 6 5 Hackware 2 | . . . . . . . . 8 15 15 5 . . Protection 3 | . 10 . . . . 6 6 8 7 7 4 . 2 Energy Gun 4 | . 23 9 . . . . . . . . . 8 2 Energy Cannon 3 | . . 2 11 11 11 7 4 . . . . 3 2 Ballistic Gun 5 | . . 1 . . . . 11 14 15 15 13 1 5 Launcher 1 | . . . . 9 11 9 1 . . . . . . Naked Turns . | . . . . . . . . . . . . . . Heaviest Build 69 | 7 52 51 14 18 11 23 29 21 24 19 17 51 69 Greatest Support 70 | 20 24 24 15 15 3 50 50 50 50 50 20 70 60 Greatest Overweight (x) 17 | . 17 4 . 5 3 . . . . 5 5 1 11 Average Overweight (x) . | . . . . 1 2 . . . . 1 . . . Largest Inventory Capacity 20 | 5 20 20 5 5 5 5 5 5 5 5 5 5 5 Average Capacity 6 | 5 7 13 5 5 5 5 5 5 5 5 5 5 5 Most Carried 13 | 5 12 13 4 5 5 5 5 5 3 5 5 5 5 Average Carried 3 | 3 3 3 3 4 5 2 2 3 1 3 3 1 2 Final Capacity 20 | 5 20 5 5 5 5 5 5 5 5 5 5 5 5 Final Carried 10 | 4 10 3 4 5 5 1 2 4 3 3 5 1 . Class Distribution -------------------- 46% | Mutant 18% | Hacker-Mutant 12% | Scavenger-Mutant 8% | Sprinter 4% | Scavenger-Gunner 4% | Scavenger-Tank Dominant Class ---------------- Mutant | -10/Materials Mutant | -9/Materials Sprinter | -9/Mines Mutant | -9/Exiles Mutant | -8/Mines Mutant | -8/Materials Mutant | -8/Garrison Hacker-Mutant | -8/Materials Scavenger-Mutant | -7/Factory Hacker-Mutant | -7/Lower Caves Hacker-Mutant | -7/Lower Caves Scavenger-Skirmisher | -6/Factory Scavenger-Mutant | -5/Factory Resources | -11 -10 -9 -9 -9 -8 -8 -8 -8 -7 -7 -7 -6 -5 ----------- Run | Yrd Mat Mat Min Exi Min Mat Gar Mat Fac Low Low Fac Fac Matter Collected 3788 | 270 165 293 59 . 54 115 502 225 209 150 151 356 1239 Remotely . | . . . . . . . . . . . . . . Salvage Created 6210 | 36 369 554 . . 86 324 546 344 350 80 122 442 2957 Parts 321 | 1 22 40 . . 1 22 33 19 19 4 14 28 118 Haulers Intercepted . | . . . . . . . . . . . . . . Recyclers Shooed 7 | . . . . . . . . . . . . . 7 Parts Field Recycled . | . . . . . . . . . . . . . . Retrieved Matter . | . . . . . . . . . . . . . . Parts Self-Destructed 15 | . . . . . . . . . . 4 11 . . Prevented . | . . . . . . . . . . . . . . Kills | -11 -10 -9 -9 -9 -8 -8 -8 -8 -7 -7 -7 -6 -5 ------- Run | Yrd Mat Mat Min Exi Min Mat Gar Mat Fac Low Low Fac Fac Combat Hostiles Destroyed 124 | 1 9 15 . . 3 9 12 6 5 3 5 12 44 Guns 84 | 1 9 10 . . . . 10 6 5 3 5 9 26 Cannons 19 | . . 5 . . . 1 2 . . . . 1 10 AOE 16 | . . . . . 3 8 . . . . . 1 4 Classes Destroyed 15 | 1 2 2 . . . 4 2 . 1 . 1 . 2 Worker 6 | . . 1 . . . 1 . 1 . . . . 3 Builder 1 | . . . . . . 1 . . . . . . . Tunneler 1 | . . . . . . . . . 1 . . . . Recycler 2 | . . . . . . 1 . . . . . . 1 Mechanic 1 | . . . . . . . . . . . . . 1 Operator 1 | . . . . . . 1 . . . . . . . Watcher 10 | . 3 2 . . . . . . 1 . . . 4 Swarmer 32 | . 3 6 . . . 2 . . . 3 4 7 7 Cutter 2 | . . . . . . . 2 . . . . . . Grunt 52 | 1 6 6 . . 3 4 4 4 3 . . 3 18 Brawler 4 | . . . . . . 1 . . 1 . . . 2 Sentry 14 | . . 3 . . . 2 2 2 1 . . . 4 Hunter 14 | . . . . . . . 4 . . . . 2 8 Programmer 5 | . . . . . . . . . . . . . 5 Master Thief 1 | . . . . . . . . . . . 1 . . Best Kill Streak 7 | 1 4 5 . . 3 7 4 3 4 3 4 4 5 Combat Bots Only 5 | 1 3 4 . . 3 5 4 2 4 3 4 4 5 Max Kills in Single Turn 4 | 1 1 1 . . 1 3 2 1 1 2 1 1 4 Gunslinging 1 | . . . . . . . 1 . . 1 . . . Exploded 3 | . . . . . 1 2 . . . . . 1 3 Melee . | . . . . . . . . . . . . . . Uniques/NPCs Destroyed . | . . . . . . . . . . . . . . Combat | -11 -10 -9 -9 -9 -8 -8 -8 -8 -7 -7 -7 -6 -5 -------- Run | Yrd Mat Mat Min Exi Min Mat Gar Mat Fac Low Low Fac Fac Hostile Shots Fired 1118 | 3 49 65 . . 13 14 168 28 72 18 33 137 518 Missed 377 | 3 17 26 . . 6 5 76 12 24 8 11 35 154 Damage Taken 9552 | . 338 368 . . 129 115 1100 201 319 72 228 1287 5395 Core 2132 | . 107 131 . . 28 60 94 40 31 12 66 563 1000 Absorbed by Shields 47 | . . . . . . . 19 . . . . 28 . Ignored by Resistances 2853 | . 94 113 . . 36 32 320 57 106 21 68 373 1633 Regen/Repaired (Parts) 191 | . . 23 . . . . . 168 . . . . . Core Remaining (%) 66 | 100 57 . . . 60 . . 64 . . 84 33 . Volleys Fired 544 | 3 43 75 1 . 6 16 75 20 22 15 22 44 202 Largest 4 | 2 2 2 1 . 2 1 2 2 2 2 2 3 4 Hottest 240 | 100 156 76 68 . 101 68 68 56 56 56 50 240 240 Shots Fired 850 | 6 76 78 1 . 12 16 114 40 44 30 44 64 325 Gun 718 | 6 68 70 . . . . 101 40 44 30 44 51 264 Cannon 98 | . . 8 1 . 6 3 9 . . . . 10 61 Launcher 26 | . . . . . 6 13 4 . . . . 3 . Special 8 | . 8 . . . . . . . . . . . . Kinetic 491 | . . 3 . . . . 101 40 44 30 44 27 202 Thermal 333 | 6 76 75 1 . 6 3 9 . . . . 34 123 Explosive 26 | . . . . . 6 13 4 . . . . 3 . Electromagnetic . | . . . . . . . . . . . . . . Robot Hit Streak 27 | 5 7 17 . . 9 8 13 16 12 7 9 13 27 Robot Miss Streak 4 | . 2 4 . . 1 2 2 1 2 4 3 4 3 Penetration Max 2 | . . . . . . . 1 1 1 . . 1 2 Secondary Targets 8 | . 3 . . . . . 4 . . 1 . . . Max Gunslinging Chain 1 | . 1 . . . . . 1 . . 1 . . . Shots Hit Robots 592 | 5 39 55 . . 10 8 84 30 34 17 27 41 242 Core Hits 283 | 2 18 24 . . 7 22 30 15 16 5 10 22 112 Critical Kills 8 | . . . . . . . . . . . . . 8 Critical Parts Destroyed 16 | . . . . . . . 1 2 . . . . 13 Critical Strikes 35 | . 3 3 . . . . 1 2 . . . 2 24 Burn 10 | . 3 3 . . . . . . . . . 2 2 Destroy 25 | . . . . . . . 1 2 . . . . 22 Melee Attacks . | . . . . . . . . . . . . . . Impact . | . . . . . . . . . . . . . . Slashing . | . . . . . . . . . . . . . . Piercing . | . . . . . . . . . . . . . . Sneak Attacks . | . . . . . . . . . . . . . . Combat Hostiles . | . . . . . . . . . . . . . . Follow-up Attacks . | . . . . . . . . . . . . . . Damage Inflicted 13921 | 64 549 826 . . 501 984 1264 676 672 307 430 872 6776 Guns 9206 | 64 549 662 . . . . 868 676 672 307 430 656 4322 Cannons 2224 | . . 164 . . 123 41 184 . . . . 125 1587 Explosions 2491 | . . . . . 378 943 212 . . . . 91 867 Melee . | . . . . . . . . . . . . . . Ramming . | . . . . . . . . . . . . . . Kinetic 6739 | . . 11 . . . . 868 676 672 307 430 391 3384 Thermal 4691 | 64 549 815 . . 123 41 184 . . . . 390 2525 Explosive 2491 | . . . . . 378 943 212 . . . . 91 867 Electromagnetic . | . . . . . . . . . . . . . . Impact . | . . . . . . . . . . . . . . Slashing . | . . . . . . . . . . . . . . Piercing . | . . . . . . . . . . . . . . Highest Corruption 16 | . 1 . . . . . . . . . . . 16 Average Corruption 3 | . 1 . . . . . . . . . . . 4 Corruption Purged 5 | . . . . . . . . . . . . . 5 Corruption Blocked . | . . . . . . . . . . . . . . Effects 31 | . 2 . . . . . . . . . . . 29 Message Errors 10 | . . . . . . . . . . . . . 10 Matter Fused 3 | . . . . . . . . . . . . . 3 Heat Flow Errors 4 | . 1 . . . . . . . . . . . 3 Energy Discharges 7 | . . . . . . . . . . . . . 7 Data Loss (minor) 3 | . . . . . . . . . . . . . 3 Data Loss (major) 2 | . 1 . . . . . . . . . . . 1 Weapon Failures 2 | . . . . . . . . . . . . . 2 Overload Shots . | . . . . . . . . . . . . . . Overflow Damage 194 | . . . . . 17 72 . . . . . . 105 Projectiles 32 | . . . . . . . . . . . . . 32 Explosions 162 | . . . . . 17 72 . . . . . . 73 Melee . | . . . . . . . . . . . . . . Knockbacks . | . . . . . . . . . . . . . . Impact . | . . . . . . . . . . . . . . Kinetic . | . . . . . . . . . . . . . . Secondary . | . . . . . . . . . . . . . . Self-Inflicted Damage 275 | . . . . . 34 19 15 . . . . 15 192 Shots 7 | . . . . . 1 1 1 . . . . 1 3 Rammed . | . . . . . . . . . . . . . . Targets Rammed . | . . . . . . . . . . . . . . Kicked . | . . . . . . . . . . . . . . Crushed . | . . . . . . . . . . . . . . Highest Temperature 549 | 72 524 293 28 . 161 61 300 151 8 8 . 402 549 Average Temperature 118 | 39 178 62 17 . 101 22 80 59 6 8 . 157 129 Received Heat Transfer 2151 | . 180 201 . . 81 27 144 135 153 . . 288 942 Effects 13 | . 8 . . . . . 1 . . . . 1 3 Shutdowns 5 | . 2 . . . . . . . . . . 1 2 Energy Bleed 3 | . 3 . . . . . . . . . . . . Interference 1 | . . . . . . . 1 . . . . . . Matter Decay 1 | . 1 . . . . . . . . . . . . Short Circuit 2 | . 1 . . . . . . . . . . . 1 Damage (core) 1 | . 1 . . . . . . . . . . . . Siege Activations . | . . . . . . . . . . . . . . Robots Corrupted . | . . . . . . . . . . . . . . Combat Hostiles . | . . . . . . . . . . . . . . Parts Fried . | . . . . . . . . . . . . . . Impact Corruptions . | . . . . . . . . . . . . . . Robots Melted 5 | . . . . . . . . . . . . 1 4 Combat Hostiles 5 | . . . . . . . . . . . . 1 4 Parts Melted 22 | . 3 3 . . . . . . . . . . 16 Heat Transferred 9952 | 185 1665 2150 . . 222 74 333 . . . . 920 4403 Parts Sabotaged . | . . . . . . . . . . . . . . Parts Stolen 4 | . . . . . . . . . . 2 2 . . Parts Stripped . | . . . . . . . . . . . . . . Power Chain Reactions . | . . . . . . . . . . . . . . Alert | -11 -10 -9 -9 -9 -8 -8 -8 -8 -7 -7 -7 -6 -5 ------- Run | Yrd Mat Mat Min Exi Min Mat Gar Mat Fac Low Low Fac Fac Peak Influence 506 | 20 169 335 107 . 86 358 441 328 308 . . 208 506 Initial 184 | . 11 41 44 . . 28 89 184 127 . . 52 39 Average 196 | 11 84 127 55 . 7 277 249 288 237 . . 99 309 Maximum Alert Level 2 | . . 1 . . . 1 2 1 1 . . 1 2 Low Security (%) 51 | 100 100 81 100 . 100 24 45 1 29 . . 81 13 Level 1 43 | . . 18 . . . 75 42 98 70 . . 18 72 Level 2 5 | . . . . . . . 11 . . . . . 14 Level 3 . | . . . . . . . . . . . . . . Level 4 . | . . . . . . . . . . . . . . Level 5 . | . . . . . . . . . . . . . . High Security . | . . . . . . . . . . . . . . Max Security . | . . . . . . . . . . . . . . Squads Dispatched 24 | . 1 3 . . . 2 . 2 . . . 2 14 Investigation 13 | . 1 3 . . . 1 . 2 . . . 1 5 Extermination 4 | . . . . . . . . . . . . 1 3 Reinforcement 3 | . . . . . . 1 . . . . . . 2 Assault . | . . . . . . . . . . . . . . Garrison 4 | . . . . . . . . . . . . . 4 Intercept . | . . . . . . . . . . . . . . Searches Triggered . | . . . . . . . . . . . . . . Construction Impeded 1 | . . . . . . . . . . . . . 1 Haulers Reinforced 1 | . . . . . . . . . . . . . 1 Active Scanning Responses . | . . . . . . . . . . . . . . Cargo Convoy Interrupts . | . . . . . . . . . . . . . . Stealth | -11 -10 -9 -9 -9 -8 -8 -8 -8 -7 -7 -7 -6 -5 --------- Run | Yrd Mat Mat Min Exi Min Mat Gar Mat Fac Low Low Fac Fac Distress Signals 3 | . . 1 . . . . . . 1 . . . 1 Communications Jammed . | . . . . . . . . . . . . . . Distress Signals . | . . . . . . . . . . . . . . Times Spotted 171 | 1 15 19 . . 3 13 13 8 10 5 7 14 63 Peak Tracking Total 10 | 1 4 4 . . 3 6 10 3 4 3 4 4 5 Tactical Retreats 6 | . . . . . . 1 1 . . . 1 1 2 Traps | -11 -10 -9 -9 -9 -8 -8 -8 -8 -7 -7 -7 -6 -5 ------- Run | Yrd Mat Mat Min Exi Min Mat Gar Mat Fac Low Low Fac Fac Traps Triggered 1 | . . . . . . . 1 . . . . . . Indirectly . | . . . . . . . . . . . . . . Trap Hack Attempts . | . . . . . . . . . . . . . . Triggered . | . . . . . . . . . . . . . . Disarmed . | . . . . . . . . . . . . . . Reprogrammed . | . . . . . . . . . . . . . . Reused . | . . . . . . . . . . . . . . Traps Extracted . | . . . . . . . . . . . . . . Installed . | . . . . . . . . . . . . . . Triggered . | . . . . . . . . . . . . . . Machines | -11 -10 -9 -9 -9 -8 -8 -8 -8 -7 -7 -7 -6 -5 ---------- Run | Yrd Mat Mat Min Exi Min Mat Gar Mat Fac Low Low Fac Fac Machines Disabled 12 | . 1 . . . . 2 1 . . . . . 8 Max in Single Turn 4 | . 1 . . . . 1 1 . . . . . 4 Garrison Relay 1 | . . . . . . . 1 . . . . . . Machines Repaired . | . . . . . . . . . . . . . . Machines Dismantled . | . . . . . . . . . . . . . . Machines Sabotaged . | . . . . . . . . . . . . . . Overloaded Fab Kills . | . . . . . . . . . . . . . . Hacking | -11 -10 -9 -9 -9 -8 -8 -8 -8 -7 -7 -7 -6 -5 --------- Run | Yrd Mat Mat Min Exi Min Mat Gar Mat Fac Low Low Fac Fac Machines Accessed 35 | . 5 7 . 2 . 5 2 4 3 . . 1 6 Terminals 20 | . 3 5 . . . 3 2 2 2 . . . 3 Fabricators 2 | . . . . . . . . . . . . . 2 Repair Stations 3 | . . 1 . . . . . 1 . . . . 1 Recycling Units 5 | . 2 1 . . . 1 . . . . . 1 . Scanalyzers 2 | . . . . . . . . 1 1 . . . . Garrison Access 1 | . . . . . . 1 . . . . . . . Total Hacks 119 | . 18 24 . 10 . 13 2 19 12 . . 4 17 Successful 86 | . 15 15 . 10 . 7 2 13 9 . . 4 11 Failed 32 | . 3 8 . . . 6 . 6 3 . . . 6 Catastrophic 3 | . . . . . . 1 . . . . . . 2 Database Lockouts 1 | . . 1 . . . . . . . . . . . Manual 6 | . . . . 5 . . 1 . . . . . . Terminals 59 | . 11 15 . . . 7 2 7 9 . . . 8 Fabricators 6 | . . . . . . . . . . . . . 6 Repair Stations 11 | . . 4 . . . . . 4 . . . . 3 Recycling Units 20 | . 7 5 . . . 4 . . . . . 4 . Scanalyzers 11 | . . . . . . . . 8 3 . . . . Garrison Access 2 | . . . . . . 2 . . . . . . . Terminal Hacks 48 | . 9 9 . 10 . 3 2 1 7 . . . 7 Record 19 | . 3 7 . 9 . . . . . . . . . Part Schematic 1 | . . . . . . . . . . . . . 1 Robot Analysis 1 | . . . . . . . . . . . . . 1 Prototype ID Bank 3 | . 1 1 . . . . . . 1 . . . . Level Access Points 1 | . . . . . . . . . . . . . 1 Emergency Access Points 4 | . 1 . . . . 1 1 . 1 . . . . Repair Station Index 1 | . . 1 . . . . . . . . . . . Alert Level 1 | . 1 . . . . . . . . . . . . Unreport Threat 1 | . 1 . . . . . . . . . . . . Maintenance Status 1 | . 1 . . . . . . . . . . . . Security Status 1 | . . . . . . . . . 1 . . . . Extermination Status 1 | . . . . . . . . . . . . . 1 Reinforcement Status 1 | . . . . . . . . . . . . . 1 Recall Investigation 1 | . . . . . . . . . 1 . . . . Hauler Manifests 2 | . 1 . . . . . . . 1 . . . . Registered Components 3 | . . . . . . 1 . 1 1 . . . . Zone Layout 4 | . . . . . . 1 . . 1 . . . 2 Garrison Registry 1 | . . . . . . . 1 . . . . . . Derelict Proto ID Bank 1 | . . . . 1 . . . . . . . . . Fabricator Hacks 3 | . . . . . . . . . . . . . 3 Load Schematic 2 | . . . . . . . . . . . . . 2 Build 1 | . . . . . . . . . . . . . 1 Repair Station Hacks 7 | . . 2 . . . . . 4 . . . . 1 Scan Component 4 | . . 1 . . . . . 2 . . . . 1 Repair 3 | . . 1 . . . . . 2 . . . . . Recycling Unit Hacks 17 | . 6 4 . . . 3 . . . . . 4 . Recycle Component 8 | . 3 1 . . . 2 . . . . . 2 . Process 4 | . 2 2 . . . . . . . . . . . Report Inventory 2 | . 1 . . . . . . . . . . 1 . Retrieve Matter 3 | . . 1 . . . 1 . . . . . 1 . Scanalyzer 10 | . . . . . . . . 8 2 . . . . Insert Component 5 | . . . . . . . . 4 1 . . . . Analyze 5 | . . . . . . . . 4 1 . . . . Garrison Access Hacks 1 | . . . . . . 1 . . . . . . . Unlock Access 1 | . . . . . . 1 . . . . . . . Unauthorized Hacks . | . . . . . . . . . . . . . . Terminals . | . . . . . . . . . . . . . . Fabricators . | . . . . . . . . . . . . . . Repair Stations . | . . . . . . . . . . . . . . Recycling Units . | . . . . . . . . . . . . . . Scanalyzers . | . . . . . . . . . . . . . . Garrison Access . | . . . . . . . . . . . . . . Data Cores Recovered . | . . . . . . . . . . . . . . Used . | . . . . . . . . . . . . . . Hacking Detections 29 | . 4 6 . . . 4 2 3 3 . . 1 6 Full Trace Events 17 | . 4 3 . . . 2 . 2 . . . 1 5 Feedback Events 1 | . 1 . . . . . . . . . . . . Corruption 1 | . 1 . . . . . . . . . . . . Feedback Blocked . | . . . . . . . . . . . . . . Robot Schematics Acquired . | . . . . . . . . . . . . . . Robots Built . | . . . . . . . . . . . . . . Authchips . | . . . . . . . . . . . . . . Time . | . . . . . . . . . . . . . . Total Robot Build Rating . | . . . . . . . . . . . . . . Part Schematics Acquired 5 | . . . . . . . . 3 1 . . . 1 Parts Built 3 | . . . . . . . . . . . . . 3 Authchips . | . . . . . . . . . . . . . . Time 25 | . . . . . . . . . . . . . 25 Total Part Build Rating 3 | . . . . . . . . . . . . . 3 Parts Repaired 3 | . . 1 . . . . . 2 . . . . . Time 107 | . . 19 . . . . . 88 . . . . . Parts Recycled 8 | . 3 1 . . . 2 . . . . . 2 . Recycled Matter 803 | . 267 536 . . . . . . . . . . . Retrieved Matter 536 | . . 536 . . . . . . . . . . . Retrieved Components . | . . . . . . . . . . . . . . Parts Scanalyzed 4 | . . . . . . . . 3 1 . . . . Part Schematics Acquired 4 | . . . . . . . . 3 1 . . . . Parts Damaged . | . . . . . . . . . . . . . . Bothacking | -11 -10 -9 -9 -9 -8 -8 -8 -8 -7 -7 -7 -6 -5 ------------ Run | Yrd Mat Mat Min Exi Min Mat Gar Mat Fac Low Low Fac Fac Used RIF Installer . | . . . . . . . . . . . . . . Robots Hacked . | . . . . . . . . . . . . . . Non-combat . | . . . . . . . . . . . . . . Combat . | . . . . . . . . . . . . . . Robot Hacks Applied . | . . . . . . . . . . . . . . Relay Couplers Released 8 | . . . . . . . 5 . . . . . 3 Machine Destruction 5 | . . . . . . . 5 . . . . . . Programmers 3 | . . . . . . . . . . . . . 3 Fabnet Peak Effective % . | . . . . . . . . . . . . . . Robots Rewired . | . . . . . . . . . . . . . . Allies Hacked . | . . . . . . . . . . . . . . Hacks Repelled . | . . . . . . . . . . . . . . Allies | -11 -10 -9 -9 -9 -8 -8 -8 -8 -7 -7 -7 -6 -5 -------- Run | Yrd Mat Mat Min Exi Min Mat Gar Mat Fac Low Low Fac Fac Total Allies 3 | . . . 3 . . . . . . . . . . Largest Group 3 | . . . 3 . . . . . . . . . . Highest-Rated Group 40 | . . . 40 . . . . . . . . . . Highest-Rated Ally 16 | . . . 16 . . . . . . . . . . Total Orders 4 | . . . 4 . . . . . . . . . . ROAM 1 | . . . 1 . . . . . . . . . . FOLLOW 3 | . . . 3 . . . . . . . . . . Ally Attacks 11 | . . . 11 . . . . . . . . . . Total Damage 97 | . . . 97 . . . . . . . . . . Kills 4 | . . . 4 . . . . . . . . . . Allies Corrupted . | . . . . . . . . . . . . . . Allies Melted . | . . . . . . . . . . . . . . Intel | -11 -10 -9 -9 -9 -8 -8 -8 -8 -7 -7 -7 -6 -5 ------- Run | Yrd Mat Mat Min Exi Min Mat Gar Mat Fac Low Low Fac Fac Robot Analysis Total 1 | . . . . . . . . . . . . . 1 Derelict Logs Recovered 4 | . . . 2 . . . . . . . 2 . . Drone Launches . | . . . . . . . . . . . . . . Drone Recoveries . | . . . . . . . . . . . . . . Exploration | -11 -10 -9 -9 -9 -8 -8 -8 -8 -7 -7 -7 -6 -5 ------------- Run | Yrd Mat Mat Min Exi Min Mat Gar Mat Fac Low Low Fac Fac Turns Passed 8254 | 308 688 807 168 630 312 410 510 324 228 1007 330 551 1981 Spaces Moved 6588 | 177 422 799 458 458 151 324 613 313 313 490 326 363 1381 Core 709 | 48 4 4 . 275 151 . . . . 133 2 31 61 Treads 468 | . . . . . . . . . . 347 12 . 109 Legs 730 | 7 . . . . . . . . . . . 277 446 Wheels 969 | 122 412 331 . . . . . . . . . . 104 Hover 92 | . 6 . . . . . . . . . . . 86 Flight 3620 | . . 464 458 183 . 324 613 313 313 10 312 55 575 Fastest Speed 29 | 50 80 29 29 29 150 50 50 50 50 50 32 32 32 Average Speed 88 | 73 98 65 29 133 195 50 50 50 50 195 80 101 97 Slowest Speed 900 | 120 900 250 29 300 200 50 50 50 50 300 300 120 600 Overloaded Moves . | . . . . . . . . . . . . . . Propulsion Burnouts . | . . . . . . . . . . . . . . Robots Hopped 15 | . . 5 . . . . . 1 1 . . . 8 Cave-ins Triggered . | . . . . . . . . . . . . . . Exploration Rate (%) 43 | 8 51 43 74 89 42 34 70 30 13 79 33 8 32 Regions Visited 13 Branch Regions 5 Pre-discovered Areas 1 | . . . 1 . . . . . . . . . . Known Exits Taken 3 | . . . . . . 1 . 1 . . 1 . . Unknown Exits Taken 9 | 1 1 1 1 1 1 . . . 1 1 . 1 . Scrap Searched 3 | . . . 1 . . . . . . 1 1 . . Spaces Dug 8 | . 8 . . . . . . . . . . . . Terrain Destroyed 200 | . 8 . . . 54 61 8 . 1 . . 18 50 Melee . | . . . . . . . . . . . . . . Projectile 32 | . 8 . . . . . . . 1 . . 5 18 AOE 165 | . . . . . 54 61 8 . . . . 13 29 Terrain Rammed . | . . . . . . . . . . . . . . Walls Destroyed . | . . . . . . . . . . . . . . Machines Disabled . | . . . . . . . . . . . . . . Actions | -11 -10 -9 -9 -9 -8 -8 -8 -8 -7 -7 -7 -6 -5 --------- Run | Yrd Mat Mat Min Exi Min Mat Gar Mat Fac Low Low Fac Fac Total 8252 | 349 614 1018 491 480 156 556 711 440 339 513 360 494 1731 Wait 705 | 152 69 55 32 10 . 204 1 93 . 1 . 44 44 Move 6542 | 176 421 788 457 457 150 323 609 310 310 489 325 362 1365 Hop 15 | . . 5 . . . . . 1 1 . . . 8 Pick Up 152 | 9 33 24 1 3 . 6 8 6 2 2 3 17 38 Fast Attach 8 | . . . . . . . . . . . 1 . 7 Attach 154 | 7 20 31 . 2 . 4 10 6 3 4 3 20 44 Detach 46 | 2 6 16 . 1 . 1 3 3 . 2 3 3 6 Swap 5 | . 1 3 . . . . . . . . . . 1 Drop 79 | . 21 21 . 7 . 2 3 1 1 . 3 4 16 Fire 544 | 3 43 75 1 . 6 16 75 20 22 15 22 44 202 Melee . | . . . . . . . . . . . . . . Ram . | . . . . . . . . . . . . . . Kick . | . . . . . . . . . . . . . . Crush . | . . . . . . . . . . . . . . Escape Stasis 2 | . . . . . . . 2 . . . . . . Rewire . | . . . . . . . . . . . . . . Trap . | . . . . . . . . . . . . . . Miscellaneous . | . . . . . . . . . . . . . . Route ------- -11/Scrapyard -10/Materials (discovered 2 exits: *Mat / [*Min]) -9/Materials (discovered 2 exits: *Mat / [*Min]) -9/Mines (discovered 3 exits: *Mat x2 / *Exi) -9/Exiles (discovered 2 exits: [*Min x2]) -8/Mines -8/Materials (discovered 3 exits: *Fac x2 / Gar) -8/Garrison (discovered 4 exits: *Mat x4) -8/Materials -7/Factory -7/Lower Caves -7/Lower Caves (discovered 2 exits: *Fac / Zio) -6/Factory -5/Factory (discovered 4 exits: Fac x4) History --------- Turn | Location | Event 2 | -11/Scrapyard | Met Revision 17 79 | -11/Scrapyard | Discovered new exit (range 8) 309 | -11/Scrapyard | Entered Materials 310 | -10/Materials | Build established: Mutant 569 | -10/Materials | Discovered new exit (range 15) 838 | -10/Materials | Discovered new exit (range 15) 997 | -10/Materials | Entered another Materials area 997 | -9/Materials | Evolved 2 slots: Propulsion x1, Utility x1 1559 | -9/Materials | Discovered new exit (range 13) 1648 | -9/Materials | Discovered new exit (range 13) 1740 | -9/Materials | Central database locked down 1767 | -9/Materials | Repaired Cesium-ion Thruster 1804 | -9/Materials | Entered Mines 1805 | -9/Mines | Learned location of Storage (-8) 1829 | -9/Mines | Learned location of 1 exit from Materials 1831 | -9/Mines | Discovered new exit (range 10) 1844 | -9/Mines | Assisted by bots powering up and referring to "LRC-V3" 1871 | -9/Mines | Received a Rocket Launcher from a helpful Derelict 1942 | -9/Mines | Discovered new exit (range 15) 1948 | -9/Mines | Learned Materials security intel 1971 | -9/Mines | Deemed a non-threat by the Exiles lab entrance 1971 | -9/Mines | Discovered new exit (range 5) 1972 | -9/Mines | Entered Exiles 1977 | -9/Exiles | Discovered new exit (range 15) 1980 | -9/Exiles | Met 8R-AWN 1997 | -9/Exiles | Met EX-HEX 2011 | -9/Exiles | Met EX-BIN 2016 | -9/Exiles | Aligned with FarCom system 2016 | -9/Exiles | Given EX-Vault access code 2032 | -9/Exiles | Opened EX-Vault 2034 | -9/Exiles | Found Prototype Processor 2035 | -9/Exiles | Identified 0b10 Alert Chip 2038 | -9/Exiles | Found Prototype Storage 2042 | -9/Exiles | Found Prototype Flight Unit 2059 | -9/Exiles | Identified Flying Fortress v7 2104 | -9/Exiles | Warned to stay clear of 0b10 Research branches 2158 | -9/Exiles | Met EX-DEC 2291 | -9/Exiles | Visited The Gauntlet 2576 | -9/Exiles | Discovered new exit (range 14) 2602 | -9/Exiles | Stole two prototypes: 0b10 Alert Chip, Flying Fortress v7 2602 | -9/Exiles | Entered Mines 2872 | -8/Mines | Discovered new exit (range 14) 2914 | -8/Mines | Entered Materials 2914 | -8/Materials | Evolved 2 slots: Power x1, Propulsion x1 2915 | -8/Materials | Identified exit to Factory 3273 | -8/Materials | Discovered exit to Factory (range 7) 3313 | -8/Materials | Identified exit to Garrison 3324 | -8/Materials | Entered Garrison 3348 | -8/Garrison | Triggered checkpoint 3394 | -8/Garrison | Discovered new exit (range 8) 3416 | -8/Garrison | Triggered checkpoint 3438 | -8/Garrison | Attempted to access garrison exit controls, blocked by remote lockdown 3482 | -8/Garrison | Discovered new exit (range 12) 3487 | -8/Garrison | Attempted to access garrison exit controls, blocked by remote lockdown 3520 | -8/Garrison | Triggered checkpoint 3526 | -8/Garrison | Discovered new exit (range 42) 3526 | -8/Garrison | Discovered new exit (range 7) 3526 | -8/Garrison | Discovered new exit (range 57) 3526 | -8/Garrison | Discovered new exit (range 77) 3530 | -8/Garrison | Garrison Relay disabled 3748 | -8/Garrison | Triggered checkpoint 3834 | -8/Garrison | Entered Materials 4027 | -8/Materials | Discovered exit to Factory (range 15) 4083 | -8/Materials | Repaired Gauss Rifle 4127 | -8/Materials | Repaired Gauss Rifle 4153 | -8/Materials | Build established: Hacker-Mutant 4158 | -8/Materials | Entered Factory 4158 | -7/Factory | Evolved 2 slots: Utility x2 4160 | -7/Factory | FarCom data flow suspended 4383 | -7/Factory | Discovered new exit (range 8) 4386 | -7/Factory | Entered Lower Caves 4386 | -7/Lower Caves | Spotted FP-Q15(f) 4386 | -7/Lower Caves | Spotted 8S-01O(f) 4387 | -7/Lower Caves | Encountered a Master Thief 4387 | -7/Lower Caves | Encountered a Master Thief 4405 | -7/Lower Caves | Flying Fortress v7 stolen by Master Thief 5235 | -7/Lower Caves | Encountered a Warlord checkpoint 5252 | -7/Lower Caves | Discovered new exit (range 14) 5393 | -7/Lower Caves | Entered another Lower Caves area 5393 | -7/Lower Caves | Spotted 0I-UX9(f) 5393 | -7/Lower Caves | Spotted KP-VMY(f) 5394 | -7/Lower Caves | Encountered a Master Thief 5394 | -7/Lower Caves | Encountered a Master Thief 5394 | -7/Lower Caves | Med. Treads stolen by Master Thief 5417 | -7/Lower Caves | Destroyed KP-VMY(f) 5467 | -7/Lower Caves | Identified exit to Factory 5663 | -7/Lower Caves | Identified exit to Zion 5668 | -7/Lower Caves | Spotted B-75 Beast 5723 | -7/Lower Caves | Entered Factory 5723 | -6/Factory | Evolved 2 slots: Power x1, Weapon x1 5795 | -6/Factory | Lost 3 parts (2n1u) 5854 | -6/Factory | Lost 3 parts (3w) 5856 | -6/Factory | Core integrity fell below 50% 6189 | -6/Factory | Discovered new exit (range 6) 6274 | -6/Factory | Entered another Factory area 6274 | -5/Factory | Evolved 2 slots: Propulsion x1, Weapon x1 6301 | -5/Factory | Garrison activated, responded to threat 6524 | -5/Factory | Build established: Scavenger-Tank 6601 | -5/Factory | Fabricated Heat Sink (x3) 7215 | -5/Factory | Lost 13 parts (3p2n3u5w) 7492 | -5/Factory | Noticed a derelict Sapper rigging charges 7523 | -5/Factory | Spotted B-75 Beast 7535 | -5/Factory | Core integrity fell below 50% 7724 | -5/Factory | Lost 4 parts (1p1u2w) 7790 | -5/Factory | Build established: Mutant 7791 | -5/Factory | Identified exit to Factory 7832 | -5/Factory | Garrison activated, responded to threat 7834 | -5/Factory | Core integrity fell below 20% 7950 | -5/Factory | System corruption reached 10% 7980 | -5/Factory | Lost 6 parts (1p2n2u1w) 8255 | -5/Factory | Destroyed by P-70 Sage with High-powered Shock Rifle Last Messages --------------- Computer. 08215_ Acquired 61 matter. 08217_ R-10 Processor collects Flexi-carbon Leg. 08220_ Acquired Gauss Rifle. 08222_ Acquired 6 matter. 08226_ Slug penetrates P-70 Sage. 08230_ U-05 Engineer builds a Wall. 08231_ P-70 Sage resets P-70 Sage, system corruption cleaned. 08232_ YMRHLD|J0J62 08239_ P-70 Sage resets P-70 Sage, system corruption cleaned. 08251_ System corrupted: Energy discharge (-105). 08251_ M-28 Smith repairs P-70 Sage. 08253_ Slug penetrates Wall. [Achievement: First Step to Greatness] [Achievement: 5k Club] [Achievement: 10k Club] Map ----- +----------------------------------------------------+ | ??????????????????????????????? | | ??????????????????????????????? | | ??????????????????????????????? | | ??????????????????????????????? | | ??????????????????????????????? | | ???????????????????